{"text_format":"1","workbook":"xlsx","n_sheets":2,"sheets":["入力用（期限付）","記入上の留意点"],"not_rendered":{"charts":0,"images":0,"macros":1,"external_links":0,"defined_names":2,"comments":0,"pivot_tables":0},"unopened":[],"bounds":{"document_bytes":16777216,"sheet_cells":100000,"rows_first":2000,"rows_last":500,"rows_between":2000,"halvings":0,"cell_chars":16384,"cell_head_chars":4096},"cells_cut":0,"cells_raw":0,"read":"whole","date_system":"1900"}

{"sheet":"入力用（期限付）","index":0,"n_rows":77,"n_cols":172,"rows_kept":77,"cut":false,"hidden":false,"merged":[[14,142,15,142],[14,143,15,143],[14,131,14,133],[14,134,15,134],[14,135,15,135],[14,136,15,136],[14,137,15,137],[0,15,4,102],[10,9,12,9],[10,92,13,116],[14,0,14,12],[14,13,14,37],[14,38,14,42],[14,43,14,116],[15,96,15,116],[14,160,15,160],[14,161,15,161],[14,162,15,162],[14,163,14,170],[14,171,15,171],[15,0,15,12],[15,13,15,68],[15,69,16,73],[15,74,16,91],[15,92,16,95],[14,150,14,151],[14,152,14,153],[14,154,14,155],[14,156,14,157],[14,158,14,159],[14,144,15,144],[14,145,15,145],[14,146,15,146],[14,147,15,147],[14,148,14,149],[14,138,15,138],[14,139,15,139],[14,140,15,140],[14,141,15,141],[16,0,16,12],[16,13,16,68],[16,96,16,112],[16,113,16,116],[17,0,17,12],[17,13,17,41],[17,42,17,68],[17,69,17,116],[18,0,19,12],[18,13,18,116],[19,13,19,80],[19,81,19,86],[19,87,19,88],[19,89,19,96],[19,97,19,98],[19,99,19,105],[19,106,19,108],[19,109,19,116],[23,98,23,103],[23,113,23,116],[21,113,21,116],[22,0,23,12],[22,113,22,116],[20,0,21,12],[20,13,20,116],[21,13,21,38],[21,39,21,85],[21,86,21,89],[21,90,21,96],[21,97,21,100],[21,101,21,104],[21,105,21,108],[21,109,21,112],[27,0,27,12],[27,13,27,35],[27,36,27,60],[27,61,27,85],[27,86,27,116],[24,61,24,116],[25,0,25,12],[25,13,25,35],[25,36,25,60],[25,61,25,85],[25,86,25,116],[24,0,24,12],[24,13,24,35],[24,36,24,60],[42,23,42,90],[42,91,42,116],[38,0,46,4],[38,5,38,22],[38,23,38,90],[38,91,38,116],[39,5,39,22],[39,23,39,90],[39,91,39,116],[40,5,40,22],[40,23,40,90],[40,91,40,116],[47,0,47,116],[48,0,48,116],[5,15,9,102],[22,89,22,112],[23,104,23,112],[23,89,23,97],[22,74,23,88],[22,60,23,73],[45,5,45,22],[45,23,45,90],[45,91,45,116],[46,5,46,22],[46,23,46,90],[46,91,46,116],[43,5,43,22],[43,23,43,90],[43,91,43,116],[44,5,44,22],[44,23,44,90],[44,91,44,116],[41,5,41,22],[41,23,41,90],[41,91,41,116],[42,5,42,22],[28,0,37,4],[29,5,29,27],[29,93,29,94],[29,82,29,92],[29,75,29,81],[29,28,29,74],[22,13,23,29],[22,30,23,35],[22,36,23,59],[28,5,28,27],[28,28,28,94],[32,5,32,116],[33,5,33,116],[34,5,34,116],[35,5,35,116],[36,5,36,116],[37,5,37,116],[30,5,30,116],[31,5,31,116],[26,0,26,12],[26,13,26,35],[26,36,26,60],[26,61,26,85],[26,86,26,116]]}
[null,null,null,null,null,null,null,null,null,null,null,null,null,null,null,"2022年度末人事異動希望調査書"]
[]
[]
[]
[]
[null,null,null,null,null,null,null,null,null,null,null,null,null,null,null,"（期限付採用教職員・再任用教職員用）"]
[]
[]
[]
[]
[null,null,null,null,null,null,null,null,null,null,null,null,null,null,null,null,null,null,null,null,null,null,null,null,null,null,null,null,null,null,null,null,null,null,null,null,null,null,null,null,null,null,null,null,null,null,null,null,null,null,null,null,null,null,null,null,null,null,null,null,null,null,null,null,null,null,null,null,null,null,null,null,null,null,null,null,null,null,null,null,null,null,null,null,null,null,null,null,null,null,null,null,"岡山県教職員組合"]
[]
[]
[]
["現任校園名",null,null,null,null,null,null,null,null,null,null,null,null,null,null,null,null,null,null,null,null,null,null,null,null,null,null,null,null,null,null,null,null,null,null,null,null,null,"立",null,null,null,null,null,null,null,null,null,null,null,null,null,null,null,null,null,null,null,null,null,null,null,null,null,null,null,null,null,null,null,null,null,null,null,null,null,null,null,null,null,null,null,null,null,null,null,null,null,null,null,null,null,null,null,null,null,null,null,null,null,null,null,null,null,null,null,null,null,null,null,null,null,null,null,null,null,null,null,null,null,null,null,null,null,null,null,null,null,null,null,null,"現任校",null,null,"名　前","ふりがな","性別","年齢","職名","所有免許\n（教科）","現住所","電話番号","生活\n根拠地","転居予定年月日","在籍\n年数","採用試験合格者","通勤\n距離","通勤\n時間\n(分）","行政：第１希望",null,"行政：第２希望",null,"行政：第３希望",null,"組合：第１希望",null,"組合：第２希望",null,"組合：第３希望",null,"期限付\n希望","再任用希望","転・留・退の理由等","歴任校と在籍年",null,null,null,null,null,null,null,"その他\n特記事項"]
["ふりがな",null,null,null,null,null,null,null,null,null,null,null,null,null,null,null,null,null,null,null,null,null,null,null,null,null,null,null,null,null,null,null,null,null,null,null,null,null,null,null,null,null,null,null,null,null,null,null,null,null,null,null,null,null,null,null,null,null,null,null,null,null,null,null,null,null,null,null,null,"性別",null,null,null,null,null,null,null,null,null,null,null,null,null,null,null,null,null,null,null,null,null,null,"年齢",null,null,null,"(2023.3.31現在）",null,null,null,null,null,null,null,null,null,null,null,null,null,null,null,null,null,null,null,null,null,null,null,null,"現任校園名市町村",{"$f":"$N$15","v":0},null,null,null,null,null,null,null,null,"支部","市町村","校名",null,null,null,null,null,null,null,null,null,null,null,null,null,null,"市町村","学校\n種別","市町村","学校\n種別","市町村","学校\n種別","市町村","校名","市町村","校名","市町村","校名",null,null,null,"１校前","２校前","３校前","４校前","５校前","６校前","７校前","８校前"]
["名   　前",null,null,null,null,null,null,null,null,null,null,null,null,null,null,null,null,null,null,null,null,null,null,null,null,null,null,null,null,null,null,null,null,null,null,null,null,null,null,null,null,null,null,null,null,null,null,null,null,null,null,null,null,null,null,null,null,null,null,null,null,null,null,null,null,null,null,null,null,null,null,null,null,null,null,null,null,null,null,null,null,null,null,null,null,null,null,null,null,null,null,null,null,null,null,null,null,null,null,null,null,null,null,null,null,null,null,null,null,null,null,null,null,"歳",null,null,null,null,null,null,null,"現任校園名",{"$f":"$AR$15","v":0},null,null,null,null,null,null,null,"→",null,{"$f":"IF($DS$16=0,\"\",$DS$16)","v":""},{"$f":"IF($DS$17=0,\"\",$DS$17)","v":""},{"$f":"IF($DS$19=0,\"\",$DS$19)","v":""},{"$f":"IF($DS$18=0,\"\",$DS$18)","v":""},{"$f":"IF($DS$20=0,\"\",$DS$20)","v":""},{"$f":"IF($DS$21=0,\"\",$DS$21)","v":""},{"$f":"IF($DS$22=0,\"\",$DS$22)","v":""},{"$f":"IF($DS$23=0,\"\",$DS$23)","v":""},{"$f":"IF($DS$24=0,\"\",$DS$24)","v":""},{"$f":"IF($DS$27=0,\"\",(DS25&\"-\"&DS26&\"-\"&DS27))","v":""},{"$f":"IF($DS$28=0,\"\",$DS$28)","v":""},{"$f":"IF($DS$29=0,\"\",(DS29&\"年\"))&IF($DS$30=0,\"\",(DS30&\"月\"))&IF($DS$31=0,\"\",(DS31&\"日\"))","v":""},{"$f":"IF($DS$32=0,\"\",$DS$32)","v":""},{"$f":"IF($DS$33=0,\"\",$DS$33)","v":""},{"$f":"IF($DS$34=0,\"\",$DS$34)","v":""},{"$f":"IF(DS35*60+DS36=0,\"\",DS35*60+DS36)","v":""},{"$f":"IF($DS$37=0,\"\",$DS$37)","v":""},{"$f":"IF($DS$38=0,\"\",$DS$38)","v":""},{"$f":"IF($DS$39=0,\"\",$DS$39)","v":""},{"$f":"IF($DS$40=0,\"\",$DS$40)","v":""},{"$f":"IF($DS$41=0,\"\",$DS$41)","v":""},{"$f":"IF($DS$42=0,\"\",$DS$42)","v":""},{"$f":"IF($DS$43=0,\"\",$DS$43)","v":""},{"$f":"IF($DS$44=0,\"\",$DS$44)","v":""},{"$f":"IF($DS$45=0,\"\",$DS$45)","v":""},{"$f":"IF($DS$46=0,\"\",$DS$46)","v":""},{"$f":"IF($DS$47=0,\"\",$DS$47)","v":""},{"$f":"IF($DS$48=0,\"\",$DS$48)","v":""},{"$f":"IF(DS49=TRUE,\"常勤\",IF(DS50=TRUE,\"非常勤\",IF(DS51=TRUE,\"どちらでもよい\",IF(DS52=TRUE,\"どちらも希望しない\",\"\"))))","v":""},{"$f":"IF(DS53=TRUE,\"フル\",IF(DS54=TRUE,\"短時間\",IF(DS55=TRUE,\"どちらも希望しない\",IF(DS56=TRUE,DS57,\"\"))))","v":""},{"$f":"IF($DS$58=0,\"\",$DS$58)&IF($DS$59=0,\"\",$DS$59)&IF($DS$60=0,\"\",$DS$60)&IF($DS$61=0,\"\",$DS$61)","v":""},{"$f":"IF($DS$62=0,\"\",$DS$62)&IF($DS$63=0,\"\",$DS$63&\"年\")","v":""},{"$f":"IF($DS$64=0,\"\",$DS$64)&IF($DS$65=0,\"\",$DS$65&\"年\")","v":""},{"$f":"IF($DS$66=0,\"\",$DS$66)&IF($DS$67=0,\"\",$DS$67&\"年\")","v":""},{"$f":"IF($DS$68=0,\"\",$DS$68)&IF($DS$69=0,\"\",$DS$69&\"年\")","v":""},{"$f":"IF($DS$70=0,\"\",$DS$70)&IF($DS$71=0,\"\",$DS$71&\"年\")","v":""},{"$f":"IF($DS$72=0,\"\",$DS$72)&IF($DS$73=0,\"\",$DS$73&\"年\")","v":""},{"$f":"IF($DS$74=0,\"\",$DS$74)&IF($DS$75=0,\"\",$DS$75&\"年\")","v":""},{"$f":"IF($DS$76=0,\"\",$DS$76)&IF($DS$77=0,\"\",$DS$77&\"年\")","v":""}]
["職   　名",null,null,null,null,null,null,null,null,null,null,null,null,null,null,null,null,null,null,null,null,null,null,null,null,null,null,null,null,null,null,null,null,null,null,null,null,null,null,null,null,null,"所 有 免 許 ・ 資 格\n（教科 ・ 司書教諭）",null,null,null,null,null,null,null,null,null,null,null,null,null,null,null,null,null,null,null,null,null,null,null,null,null,null,null,null,null,null,null,null,null,null,null,null,null,null,null,null,null,null,null,null,null,null,null,null,null,null,null,null,null,null,null,null,null,null,null,null,null,null,null,null,null,null,null,null,null,null,null,null,null,null,null,null,null,null,"ふりがな",{"$f":"$N$16","v":0},null,null,null,null,null,null,null,"★水色のところを選択し、コピーした後、集計用紙に値の貼り付けをしてください。"]
["現 住 所",null,null,null,null,null,null,null,null,null,null,null,null,null,null,null,null,null,null,null,null,null,null,null,null,null,null,null,null,null,null,null,null,null,null,null,null,null,null,null,null,null,null,null,null,null,null,null,null,null,null,null,null,null,null,null,null,null,null,null,null,null,null,null,null,null,null,null,null,null,null,null,null,null,null,null,null,null,null,null,null,null,null,null,null,null,null,null,null,null,null,null,null,null,null,null,null,null,null,null,null,null,null,null,null,null,null,null,null,null,null,null,null,null,null,null,null,null,null,null,null,"名前",{"$f":"$N$17","v":0}]
[null,null,null,null,null,null,null,null,null,null,null,null,null,null,null,null,null,null,null,null,null,null,null,null,null,null,null,null,null,null,null,null,null,null,null,null,null,null,null,null,null,null,null,null,null,null,null,null,null,null,null,null,null,null,null,null,null,null,null,null,null,null,null,null,null,null,null,null,null,null,null,null,null,null,null,null,null,null,null,null,null,"TEL",null,null,null,null,null,"（",null,null,null,null,null,null,null,null,null,"）",null,null,null,null,null,null,null,null,"－",null,null,null,null,null,null,null,null,null,null,null,null,null,null,"性別",{"$f":"$BW$16","v":0}]
["生     活\n根 拠 地",null,null,null,null,null,null,null,null,null,null,null,null,null,null,null,null,null,null,null,null,null,null,null,null,null,null,null,null,null,null,null,null,null,null,null,null,null,null,null,null,null,null,null,null,null,null,null,null,null,null,null,null,null,null,null,null,null,null,null,null,null,null,null,null,null,null,null,null,null,null,null,null,null,null,null,null,null,null,null,null,null,null,null,null,null,null,null,null,null,null,null,null,null,null,null,null,null,null,null,null,null,null,null,null,null,null,null,null,null,null,null,null,null,null,null,null,null,null,null,null,"年齢",{"$f":"$CS$17","v":0}]
[null,null,null,null,null,null,null,null,null,null,null,null,null,null,null,null,null,null,null,null,null,null,null,null,null,null,null,null,null,null,null,null,null,null,null,null,null,null,null,"転居予定の方は転居予定年月日を記入してください➡",null,null,null,null,null,null,null,null,null,null,null,null,null,null,null,null,null,null,null,null,null,null,null,null,null,null,null,null,null,null,null,null,null,null,null,null,null,null,null,null,null,null,null,null,null,null,"西暦",null,null,null,null,null,null,null,null,null,null,"年",null,null,null,null,null,null,null,"月",null,null,null,null,null,null,null,"日",null,null,null,null,null,null,null,"職名",{"$f":"$N$18","v":0}]
["現 任 校\n在籍年数",null,null,null,null,null,null,null,null,null,null,null,null,null,null,null,null,null,null,null,null,null,null,null,null,null,null,null,null,null,"年",null,null,null,null,null,"今年度採用試験\n合格者は〇を記入",null,null,null,null,null,null,null,null,null,null,null,null,null,null,null,null,null,null,null,null,null,null,null,null,null,null,null,null,null,null,null,null,null,null,null,null,null,"現任校まで",null,null,null,null,null,null,null,null,null,null,null,null,null,null,null,null,null,null,null,null,null,null,null,null,null,null,null,null,null,null,null,null,null,null,null,null,null,null,"km",null,null,null,null,null,null,null,"所有免許・資格",{"$f":"$BR$18","v":0}]
[null,null,null,null,null,null,null,null,null,null,null,null,null,null,null,null,null,null,null,null,null,null,null,null,null,null,null,null,null,null,null,null,null,null,null,null,null,null,null,null,null,null,null,null,null,null,null,null,null,null,null,null,null,null,null,null,null,null,null,null,null,null,null,null,null,null,null,null,null,null,null,null,null,null,null,null,null,null,null,null,null,null,null,null,null,null,null,null,null,null,null,null,null,null,null,null,null,null,"時間",null,null,null,null,null,null,null,null,null,null,null,null,null,null,"分",null,null,null,null,null,null,null,"現住所",{"$f":"$N$19","v":0}]
["転出希望先",null,null,null,null,null,null,null,null,null,null,null,null,"市区町村名",null,null,null,null,null,null,null,null,null,null,null,null,null,null,null,null,null,null,null,null,null,null,"学校種別（規模）",null,null,null,null,null,null,null,null,null,null,null,null,null,null,null,null,null,null,null,null,null,null,null,null,"市町村名 および 学校園名（具体的な校園名等の希望があれば記入）",null,null,null,null,null,null,null,null,null,null,null,null,null,null,null,null,null,null,null,null,null,null,null,null,null,null,null,null,null,null,null,null,null,null,null,null,null,null,null,null,null,null,null,null,null,null,null,null,null,null,null,null,null,null,null,null,null,null,null,"電話１",{"$f":"$CL$20","v":0}]
["第1希望",null,null,null,null,null,null,null,null,null,null,null,null,null,null,null,null,null,null,null,null,null,null,null,null,null,null,null,null,null,null,null,null,null,null,null,null,null,null,null,null,null,null,null,null,null,null,null,null,null,null,null,null,null,null,null,null,null,null,null,null,null,null,null,null,null,null,null,null,null,null,null,null,null,null,null,null,null,null,null,null,null,null,null,null,null,null,null,null,null,null,null,null,null,null,null,null,null,null,null,null,null,null,null,null,null,null,null,null,null,null,null,null,null,null,null,null,null,null,null,null,"電話２",{"$f":"$CV$20","v":0}]
["第2希望",null,null,null,null,null,null,null,null,null,null,null,null,null,null,null,null,null,null,null,null,null,null,null,null,null,null,null,null,null,null,null,null,null,null,null,null,null,null,null,null,null,null,null,null,null,null,null,null,null,null,null,null,null,null,null,null,null,null,null,null,null,null,null,null,null,null,null,null,null,null,null,null,null,null,null,null,null,null,null,null,null,null,null,null,null,null,null,null,null,null,null,null,null,null,null,null,null,null,null,null,null,null,null,null,null,null,null,null,null,null,null,null,null,null,null,null,null,null,null,null,"電話３",{"$f":"$DF$20","v":0}]
["第3希望",null,null,null,null,null,null,null,null,null,null,null,null,null,null,null,null,null,null,null,null,null,null,null,null,null,null,null,null,null,null,null,null,null,null,null,null,null,null,null,null,null,null,null,null,null,null,null,null,null,null,null,null,null,null,null,null,null,null,null,null,null,null,null,null,null,null,null,null,null,null,null,null,null,null,null,null,null,null,null,null,null,null,null,null,null,null,null,null,null,null,null,null,null,null,null,null,null,null,null,null,null,null,null,null,null,null,null,null,null,null,null,null,null,null,null,null,null,null,null,null,"生活根拠地",{"$f":"$N$21","v":0}]
["来　年　度　希　望　理　由　等",null,null,null,null,"　期限付採用教職員",null,null,null,null,null,null,null,null,null,null,null,null,null,null,null,null,null,null,null,null,null,null,"　　 　常勤   　 　   非常勤            どちらでもよい         どちらも希望しない",null,null,null,null,null,null,null,null,null,null,null,null,null,null,null,null,null,null,null,null,null,null,null,null,null,null,null,null,null,null,null,null,null,null,null,null,null,null,null,null,null,null,null,null,null,null,null,null,null,null,null,null,null,null,null,null,null,null,null,null,null,null,null,null,null,null," ←来年度の希望に☑",null,null,null,null,null,null,null,null,null,null,null,null,null,null,null,null,null,null,null,null,null,null,null,null,null,"転居予定年",{"$f":"$CM$22","v":0}]
[null,null,null,null,null,"　再任用教職員",null,null,null,null,null,null,null,null,null,null,null,null,null,null,null,null,null,null,null,null,null,null,"　　　　フルタイム 　　 短時間 　　　 どちらも希望しない ",null,null,null,null,null,null,null,null,null,null,null,null,null,null,null,null,null,null,null,null,null,null,null,null,null,null,null,null,null,null,null,null,null,null,null,null,null,null,null,null,null,null,null,null,null,null,"その他（",null,null,null,null,null,null,null,null,null,null,null,null,null,null,null,null,null,"）",null," ←来年度の希望に☑",null,null,null,null,null,null,null,null,null,null,null,null,null,null,null,null,null,null,null,null,null,null,null,null,null,"転居予定月",{"$f":"$CX$22","v":0}]
[null,null,null,null,null,"　担当可能（希望）教科等",null,null,null,null,null,null,null,null,null,null,null,null,null,null,null,null,null,null,null,null,null,null,null,null,null,null,null,null,null,null,null,null,null,null,null,null,null,null,null,null,null,null,null,null,null,null,null,null,null,null,null,null,null,null,null,null,null,null,null,null,null,null,null,null,null,null,null,null,null,null,null,null,null,null,null,null,null,null,null,null,null,null,null,null,null,null,null,null,null,null,null,null,null,null,null,null,null,null,null,null,null,null,null,null,null,null,null,null,null,null,null,null,null,null,null,"転居予定日",{"$f":"$DF$22","v":0}]
[null,null,null,null,null,null,null,null,null,null,null,null,null,null,null,null,null,null,null,null,null,null,null,null,null,null,null,null,null,null,null,null,null,null,null,null,null,null,null,null,null,null,null,null,null,null,null,null,null,null,null,null,null,null,null,null,null,null,null,null,null,null,null,null,null,null,null,null,null,null,null,null,null,null,null,null,null,null,null,null,null,null,null,null,null,null,null,null,null,null,null,null,null,null,null,null,null,null,null,null,null,null,null,null,null,null,null,null,null,null,null,null,null,null,null,null,null,null,null,null,null,"現任校在籍年数",{"$f":"$N$23","v":0}]
[null,null,null,null,null,"　通勤に関すること（通勤時間、通勤手段等で配慮を求める事項があれば具体的に記入）",null,null,null,null,null,null,null,null,null,null,null,null,null,null,null,null,null,null,null,null,null,null,null,null,null,null,null,null,null,null,null,null,null,null,null,null,null,null,null,null,null,null,null,null,null,null,null,null,null,null,null,null,null,null,null,null,null,null,null,null,null,null,null,null,null,null,null,null,null,null,null,null,null,null,null,null,null,null,null,null,null,null,null,null,null,null,null,null,null,null,null,null,null,null,null,null,null,null,null,null,null,null,null,null,null,null,null,null,null,null,null,null,null,null,null,"採用試験合格者",{"$f":"$BI$23","v":0}]
[null,null,null,null,null,null,null,null,null,null,null,null,null,null,null,null,null,null,null,null,null,null,null,null,null,null,null,null,null,null,null,null,null,null,null,null,null,null,null,null,null,null,null,null,null,null,null,null,null,null,null,null,null,null,null,null,null,null,null,null,null,null,null,null,null,null,null,null,null,null,null,null,null,null,null,null,null,null,null,null,null,null,null,null,null,null,null,null,null,null,null,null,null,null,null,null,null,null,null,null,null,null,null,null,null,null,null,null,null,null,null,null,null,null,null,null,null,null,null,null,null,"現住所から現任校まで（距離）",{"$f":"$CL$23","v":0}]
[null,null,null,null,null,"　勤務に関すること（学校種別、校務分掌、人間関係、自身の体調や通院等の状況等で配慮を求める事項があれば具体的に記入）",null,null,null,null,null,null,null,null,null,null,null,null,null,null,null,null,null,null,null,null,null,null,null,null,null,null,null,null,null,null,null,null,null,null,null,null,null,null,null,null,null,null,null,null,null,null,null,null,null,null,null,null,null,null,null,null,null,null,null,null,null,null,null,null,null,null,null,null,null,null,null,null,null,null,null,null,null,null,null,null,null,null,null,null,null,null,null,null,null,null,null,null,null,null,null,null,null,null,null,null,null,null,null,null,null,null,null,null,null,null,null,null,null,null,null,"現住所から現任校まで（時）",{"$f":"$CL$24","v":0}]
[null,null,null,null,null,null,null,null,null,null,null,null,null,null,null,null,null,null,null,null,null,null,null,null,null,null,null,null,null,null,null,null,null,null,null,null,null,null,null,null,null,null,null,null,null,null,null,null,null,null,null,null,null,null,null,null,null,null,null,null,null,null,null,null,null,null,null,null,null,null,null,null,null,null,null,null,null,null,null,null,null,null,null,null,null,null,null,null,null,null,null,null,null,null,null,null,null,null,null,null,null,null,null,null,null,null,null,null,null,null,null,null,null,null,null,null,null,null,null,null,null,"現住所から現任校まで（分）",{"$f":"$DA$24","v":0}]
[null,null,null,null,null,"　その他（上記以外で配慮を要するもの、または、幼・こ・保育園名、施設名、病院名等配慮を求める事項があれば具体的に記入）",null,null,null,null,null,null,null,null,null,null,null,null,null,null,null,null,null,null,null,null,null,null,null,null,null,null,null,null,null,null,null,null,null,null,null,null,null,null,null,null,null,null,null,null,null,null,null,null,null,null,null,null,null,null,null,null,null,null,null,null,null,null,null,null,null,null,null,null,null,null,null,null,null,null,null,null,null,null,null,null,null,null,null,null,null,null,null,null,null,null,null,null,null,null,null,null,null,null,null,null,null,null,null,null,null,null,null,null,null,null,null,null,null,null,null,"転出希望１市区町村名",{"$f":"$N$26","v":0}]
[null,null,null,null,null,null,null,null,null,null,null,null,null,null,null,null,null,null,null,null,null,null,null,null,null,null,null,null,null,null,null,null,null,null,null,null,null,null,null,null,null,null,null,null,null,null,null,null,null,null,null,null,null,null,null,null,null,null,null,null,null,null,null,null,null,null,null,null,null,null,null,null,null,null,null,null,null,null,null,null,null,null,null,null,null,null,null,null,null,null,null,null,null,null,null,null,null,null,null,null,null,null,null,null,null,null,null,null,null,null,null,null,null,null,null,null,null,null,null,null,null,"転出希望１学校種別",{"$f":"$AK$26","v":0}]
["採 用 後 の 歴 任 校",null,null,null,null,null,null,null,null,null,null,null,null,null,null,null,null,null,null,null,null,null,null,"学校園名",null,null,null,null,null,null,null,null,null,null,null,null,null,null,null,null,null,null,null,null,null,null,null,null,null,null,null,null,null,null,null,null,null,null,null,null,null,null,null,null,null,null,null,null,null,null,null,null,null,null,null,null,null,null,null,null,null,null,null,null,null,null,null,null,null,null,null,"在籍年数",null,null,null,null,null,null,null,null,null,null,null,null,null,null,null,null,null,null,null,null,null,null,null,null,null,null,null,null,null,"転出希望２市区町村名",{"$f":"$N$27","v":0}]
[null,null,null,null,null,"初任校",null,null,null,null,null,null,null,null,null,null,null,null,null,null,null,null,null,null,null,null,null,null,null,null,null,null,null,null,null,null,null,null,null,null,null,null,null,null,null,null,null,null,null,null,null,null,null,null,null,null,null,null,null,null,null,null,null,null,null,null,null,null,null,null,null,null,null,null,null,null,null,null,null,null,null,null,null,null,null,null,null,null,null,null,null,null,null,null,null,null,null,null,null,null,null,null,null,null,null,null,null,null,null,null,null,null,null,null,null,null,null,null,null,null,null,"転出希望２学校種別",{"$f":"$AK$27","v":0}]
[null,null,null,null,null,"2校目",null,null,null,null,null,null,null,null,null,null,null,null,null,null,null,null,null,null,null,null,null,null,null,null,null,null,null,null,null,null,null,null,null,null,null,null,null,null,null,null,null,null,null,null,null,null,null,null,null,null,null,null,null,null,null,null,null,null,null,null,null,null,null,null,null,null,null,null,null,null,null,null,null,null,null,null,null,null,null,null,null,null,null,null,null,null,null,null,null,null,null,null,null,null,null,null,null,null,null,null,null,null,null,null,null,null,null,null,null,null,null,null,null,null,null,"転出希望３市区町村名",{"$f":"$N$28","v":0}]
[null,null,null,null,null,"3校目",null,null,null,null,null,null,null,null,null,null,null,null,null,null,null,null,null,null,null,null,null,null,null,null,null,null,null,null,null,null,null,null,null,null,null,null,null,null,null,null,null,null,null,null,null,null,null,null,null,null,null,null,null,null,null,null,null,null,null,null,null,null,null,null,null,null,null,null,null,null,null,null,null,null,null,null,null,null,null,null,null,null,null,null,null,null,null,null,null,null,null,null,null,null,null,null,null,null,null,null,null,null,null,null,null,null,null,null,null,null,null,null,null,null,null,"転出希望３学校種別",{"$f":"$AK$28","v":0}]
[null,null,null,null,null,"4校目",null,null,null,null,null,null,null,null,null,null,null,null,null,null,null,null,null,null,null,null,null,null,null,null,null,null,null,null,null,null,null,null,null,null,null,null,null,null,null,null,null,null,null,null,null,null,null,null,null,null,null,null,null,null,null,null,null,null,null,null,null,null,null,null,null,null,null,null,null,null,null,null,null,null,null,null,null,null,null,null,null,null,null,null,null,null,null,null,null,null,null,null,null,null,null,null,null,null,null,null,null,null,null,null,null,null,null,null,null,null,null,null,null,null,null,"組合転出希望１市町村名",{"$f":"$BJ$26","v":0}]
[null,null,null,null,null,"5校目",null,null,null,null,null,null,null,null,null,null,null,null,null,null,null,null,null,null,null,null,null,null,null,null,null,null,null,null,null,null,null,null,null,null,null,null,null,null,null,null,null,null,null,null,null,null,null,null,null,null,null,null,null,null,null,null,null,null,null,null,null,null,null,null,null,null,null,null,null,null,null,null,null,null,null,null,null,null,null,null,null,null,null,null,null,null,null,null,null,null,null,null,null,null,null,null,null,null,null,null,null,null,null,null,null,null,null,null,null,null,null,null,null,null,null,"組合転出希望１学校園名",{"$f":"$CI$26","v":0}]
[null,null,null,null,null,"6校目",null,null,null,null,null,null,null,null,null,null,null,null,null,null,null,null,null,null,null,null,null,null,null,null,null,null,null,null,null,null,null,null,null,null,null,null,null,null,null,null,null,null,null,null,null,null,null,null,null,null,null,null,null,null,null,null,null,null,null,null,null,null,null,null,null,null,null,null,null,null,null,null,null,null,null,null,null,null,null,null,null,null,null,null,null,null,null,null,null,null,null,null,null,null,null,null,null,null,null,null,null,null,null,null,null,null,null,null,null,null,null,null,null,null,null,"組合転出希望２市町村名",{"$f":"$BJ$27","v":0}]
[null,null,null,null,null,"7校目",null,null,null,null,null,null,null,null,null,null,null,null,null,null,null,null,null,null,null,null,null,null,null,null,null,null,null,null,null,null,null,null,null,null,null,null,null,null,null,null,null,null,null,null,null,null,null,null,null,null,null,null,null,null,null,null,null,null,null,null,null,null,null,null,null,null,null,null,null,null,null,null,null,null,null,null,null,null,null,null,null,null,null,null,null,null,null,null,null,null,null,null,null,null,null,null,null,null,null,null,null,null,null,null,null,null,null,null,null,null,null,null,null,null,null,"組合転出希望２学校園名",{"$f":"$CI$27","v":0}]
[null,null,null,null,null,"8校目",null,null,null,null,null,null,null,null,null,null,null,null,null,null,null,null,null,null,null,null,null,null,null,null,null,null,null,null,null,null,null,null,null,null,null,null,null,null,null,null,null,null,null,null,null,null,null,null,null,null,null,null,null,null,null,null,null,null,null,null,null,null,null,null,null,null,null,null,null,null,null,null,null,null,null,null,null,null,null,null,null,null,null,null,null,null,null,null,null,null,null,null,null,null,null,null,null,null,null,null,null,null,null,null,null,null,null,null,null,null,null,null,null,null,null,"組合転出希望３市町村名",{"$f":"$BJ$28","v":0}]
["◎ 支部の指定する日までに支部書記局へ提出してください。",null,null,null,null,null,null,null,null,null,null,null,null,null,null,null,null,null,null,null,null,null,null,null,null,null,null,null,null,null,null,null,null,null,null,null,null,null,null,null,null,null,null,null,null,null,null,null,null,null,null,null,null,null,null,null,null,null,null,null,null,null,null,null,null,null,null,null,null,null,null,null,null,null,null,null,null,null,null,null,null,null,null,null,null,null,null,null,null,null,null,null,null,null,null,null,null,null,null,null,null,null,null,null,null,null,null,null,null,null,null,null,null,null,null,null,null,null,null,null,null,"組合転出希望３学校園名",{"$f":"$CI$28","v":0}]
["◎２部（支部用・分会用）印刷して提出してください。",null,null,null,null,null,null,null,null,null,null,null,null,null,null,null,null,null,null,null,null,null,null,null,null,null,null,null,null,null,null,null,null,null,null,null,null,null,null,null,null,null,null,null,null,null,null,null,null,null,null,null,null,null,null,null,null,null,null,null,null,null,null,null,null,null,null,null,null,null,null,null,null,null,null,null,null,null,null,null,null,null,null,null,null,null,null,null,null,null,null,null,null,null,null,null,null,null,null,null,null,null,null,null,null,null,null,null,null,null,null,null,null,null,null,null,null,null,null,null,null,"期限付：常勤",false]
[null,null,null,null,null,null,null,null,null,null,null,null,null,null,null,null,null,null,null,null,null,null,null,null,null,null,null,null,null,null,null,null,null,null,null,null,null,null,null,null,null,null,null,null,null,null,null,null,null,null,null,null,null,null,null,null,null,null,null,null,null,null,null,null,null,null,null,null,null,null,null,null,null,null,null,null,null,null,null,null,null,null,null,null,null,null,null,null,null,null,null,null,null,null,null,null,null,null,null,null,null,null,null,null,null,null,null,null,null,null,null,null,null,null,null,null,null,null,null,null,null,"期限付：非常勤",false]
[null,null,null,null,null,null,null,null,null,null,null,null,null,null,null,null,null,null,null,null,null,null,null,null,null,null,null,null,null,null,null,null,null,null,null,null,null,null,null,null,null,null,null,null,null,null,null,null,null,null,null,null,null,null,null,null,null,null,null,null,null,null,null,null,null,null,null,null,null,null,null,null,null,null,null,null,null,null,null,null,null,null,null,null,null,null,null,null,null,null,null,null,null,null,null,null,null,null,null,null,null,null,null,null,null,null,null,null,null,null,null,null,null,null,null,null,null,null,null,null,null,"期限付：どちらでもよい",false]
[null,null,null,null,null,null,null,null,null,null,null,null,null,null,null,null,null,null,null,null,null,null,null,null,null,null,null,null,null,null,null,null,null,null,null,null,null,null,null,null,null,null,null,null,null,null,null,null,null,null,null,null,null,null,null,null,null,null,null,null,null,null,null,null,null,null,null,null,null,null,null,null,null,null,null,null,null,null,null,null,null,null,null,null,null,null,null,null,null,null,null,null,null,null,null,null,null,null,null,null,null,null,null,null,null,null,null,null,null,null,null,null,null,null,null,null,null,null,null,null,null,"期限付：どちらも希望しない",false]
[null,null,null,null,null,null,null,null,null,null,null,null,null,null,null,null,null,null,null,null,null,null,null,null,null,null,null,null,null,null,null,null,null,null,null,null,null,null,null,null,null,null,null,null,null,null,null,null,null,null,null,null,null,null,null,null,null,null,null,null,null,null,null,null,null,null,null,null,null,null,null,null,null,null,null,null,null,null,null,null,null,null,null,null,null,null,null,null,null,null,null,null,null,null,null,null,null,null,null,null,null,null,null,null,null,null,null,null,null,null,null,null,null,null,null,null,null,null,null,null,null,"再任用：フル",false]
[null,null,null,null,null,null,null,null,null,null,null,null,null,null,null,null,null,null,null,null,null,null,null,null,null,null,null,null,null,null,null,null,null,null,null,null,null,null,null,null,null,null,null,null,null,null,null,null,null,null,null,null,null,null,null,null,null,null,null,null,null,null,null,null,null,null,null,null,null,null,null,null,null,null,null,null,null,null,null,null,null,null,null,null,null,null,null,null,null,null,null,null,null,null,null,null,null,null,null,null,null,null,null,null,null,null,null,null,null,null,null,null,null,null,null,null,null,null,null,null,null,"再任用：短時間",false]
[null,null,null,null,null,null,null,null,null,null,null,null,null,null,null,null,null,null,null,null,null,null,null,null,null,null,null,null,null,null,null,null,null,null,null,null,null,null,null,null,null,null,null,null,null,null,null,null,null,null,null,null,null,null,null,null,null,null,null,null,null,null,null,null,null,null,null,null,null,null,null,null,null,null,null,null,null,null,null,null,null,null,null,null,null,null,null,null,null,null,null,null,null,null,null,null,null,null,null,null,null,null,null,null,null,null,null,null,null,null,null,null,null,null,null,null,null,null,null,null,null,"再任用：どちらも希望しない",false]
[null,null,null,null,null,null,null,null,null,null,null,null,null,null,null,null,null,null,null,null,null,null,null,null,null,null,null,null,null,null,null,null,null,null,null,null,null,null,null,null,null,null,null,null,null,null,null,null,null,null,null,null,null,null,null,null,null,null,null,null,null,null,null,null,null,null,null,null,null,null,null,null,null,null,null,null,null,null,null,null,null,null,null,null,null,null,null,null,null,null,null,null,null,null,null,null,null,null,null,null,null,null,null,null,null,null,null,null,null,null,null,null,null,null,null,null,null,null,null,null,null,"再任用：その他選択",false]
[null,null,null,null,null,null,null,null,null,null,null,null,null,null,null,null,null,null,null,null,null,null,null,null,null,null,null,null,null,null,null,null,null,null,null,null,null,null,null,null,null,null,null,null,null,null,null,null,null,null,null,null,null,null,null,null,null,null,null,null,null,null,null,null,null,null,null,null,null,null,null,null,null,null,null,null,null,null,null,null,null,null,null,null,null,null,null,null,null,null,null,null,null,null,null,null,null,null,null,null,null,null,null,null,null,null,null,null,null,null,null,null,null,null,null,null,null,null,null,null,null,"再任用：その他記述",{"$f":"$CE$30","v":0}]
[null,null,null,null,null,null,null,null,null,null,null,null,null,null,null,null,null,null,null,null,null,null,null,null,null,null,null,null,null,null,null,null,null,null,null,null,null,null,null,null,null,null,null,null,null,null,null,null,null,null,null,null,null,null,null,null,null,null,null,null,null,null,null,null,null,null,null,null,null,null,null,null,null,null,null,null,null,null,null,null,null,null,null,null,null,null,null,null,null,null,null,null,null,null,null,null,null,null,null,null,null,null,null,null,null,null,null,null,null,null,null,null,null,null,null,null,null,null,null,null,null,"家族に関すること",{"$f":"$F$32","v":0}]
[null,null,null,null,null,null,null,null,null,null,null,null,null,null,null,null,null,null,null,null,null,null,null,null,null,null,null,null,null,null,null,null,null,null,null,null,null,null,null,null,null,null,null,null,null,null,null,null,null,null,null,null,null,null,null,null,null,null,null,null,null,null,null,null,null,null,null,null,null,null,null,null,null,null,null,null,null,null,null,null,null,null,null,null,null,null,null,null,null,null,null,null,null,null,null,null,null,null,null,null,null,null,null,null,null,null,null,null,null,null,null,null,null,null,null,null,null,null,null,null,null,"通勤に関すること",{"$f":"$F$34","v":0}]
[null,null,null,null,null,null,null,null,null,null,null,null,null,null,null,null,null,null,null,null,null,null,null,null,null,null,null,null,null,null,null,null,null,null,null,null,null,null,null,null,null,null,null,null,null,null,null,null,null,null,null,null,null,null,null,null,null,null,null,null,null,null,null,null,null,null,null,null,null,null,null,null,null,null,null,null,null,null,null,null,null,null,null,null,null,null,null,null,null,null,null,null,null,null,null,null,null,null,null,null,null,null,null,null,null,null,null,null,null,null,null,null,null,null,null,null,null,null,null,null,null,"勤務に関すること",{"$f":"$F$36","v":0}]
[null,null,null,null,null,null,null,null,null,null,null,null,null,null,null,null,null,null,null,null,null,null,null,null,null,null,null,null,null,null,null,null,null,null,null,null,null,null,null,null,null,null,null,null,null,null,null,null,null,null,null,null,null,null,null,null,null,null,null,null,null,null,null,null,null,null,null,null,null,null,null,null,null,null,null,null,null,null,null,null,null,null,null,null,null,null,null,null,null,null,null,null,null,null,null,null,null,null,null,null,null,null,null,null,null,null,null,null,null,null,null,null,null,null,null,null,null,null,null,null,null,"その他",{"$f":"$F$38","v":0}]
[null,null,null,null,null,null,null,null,null,null,null,null,null,null,null,null,null,null,null,null,null,null,null,null,null,null,null,null,null,null,null,null,null,null,null,null,null,null,null,null,null,null,null,null,null,null,null,null,null,null,null,null,null,null,null,null,null,null,null,null,null,null,null,null,null,null,null,null,null,null,null,null,null,null,null,null,null,null,null,null,null,null,null,null,null,null,null,null,null,null,null,null,null,null,null,null,null,null,null,null,null,null,null,null,null,null,null,null,null,null,null,null,null,null,null,null,null,null,null,null,null,"採用後の歴任校１学校園名",{"$f":"$X$40","v":0}]
[null,null,null,null,null,null,null,null,null,null,null,null,null,null,null,null,null,null,null,null,null,null,null,null,null,null,null,null,null,null,null,null,null,null,null,null,null,null,null,null,null,null,null,null,null,null,null,null,null,null,null,null,null,null,null,null,null,null,null,null,null,null,null,null,null,null,null,null,null,null,null,null,null,null,null,null,null,null,null,null,null,null,null,null,null,null,null,null,null,null,null,null,null,null,null,null,null,null,null,null,null,null,null,null,null,null,null,null,null,null,null,null,null,null,null,null,null,null,null,null,null,"採用後の歴任校１在年数",{"$f":"$CN$40","v":0}]
[null,null,null,null,null,null,null,null,null,null,null,null,null,null,null,null,null,null,null,null,null,null,null,null,null,null,null,null,null,null,null,null,null,null,null,null,null,null,null,null,null,null,null,null,null,null,null,null,null,null,null,null,null,null,null,null,null,null,null,null,null,null,null,null,null,null,null,null,null,null,null,null,null,null,null,null,null,null,null,null,null,null,null,null,null,null,null,null,null,null,null,null,null,null,null,null,null,null,null,null,null,null,null,null,null,null,null,null,null,null,null,null,null,null,null,null,null,null,null,null,null,"採用後の歴任校２学校園名",{"$f":"$X$41","v":0}]
[null,null,null,null,null,null,null,null,null,null,null,null,null,null,null,null,null,null,null,null,null,null,null,null,null,null,null,null,null,null,null,null,null,null,null,null,null,null,null,null,null,null,null,null,null,null,null,null,null,null,null,null,null,null,null,null,null,null,null,null,null,null,null,null,null,null,null,null,null,null,null,null,null,null,null,null,null,null,null,null,null,null,null,null,null,null,null,null,null,null,null,null,null,null,null,null,null,null,null,null,null,null,null,null,null,null,null,null,null,null,null,null,null,null,null,null,null,null,null,null,null,"採用後の歴任校２在年数",{"$f":"$CN$41","v":0}]
[null,null,null,null,null,null,null,null,null,null,null,null,null,null,null,null,null,null,null,null,null,null,null,null,null,null,null,null,null,null,null,null,null,null,null,null,null,null,null,null,null,null,null,null,null,null,null,null,null,null,null,null,null,null,null,null,null,null,null,null,null,null,null,null,null,null,null,null,null,null,null,null,null,null,null,null,null,null,null,null,null,null,null,null,null,null,null,null,null,null,null,null,null,null,null,null,null,null,null,null,null,null,null,null,null,null,null,null,null,null,null,null,null,null,null,null,null,null,null,null,null,"採用後の歴任校３学校園名",{"$f":"$X$42","v":0}]
[null,null,null,null,null,null,null,null,null,null,null,null,null,null,null,null,null,null,null,null,null,null,null,null,null,null,null,null,null,null,null,null,null,null,null,null,null,null,null,null,null,null,null,null,null,null,null,null,null,null,null,null,null,null,null,null,null,null,null,null,null,null,null,null,null,null,null,null,null,null,null,null,null,null,null,null,null,null,null,null,null,null,null,null,null,null,null,null,null,null,null,null,null,null,null,null,null,null,null,null,null,null,null,null,null,null,null,null,null,null,null,null,null,null,null,null,null,null,null,null,null,"採用後の歴任校３在年数",{"$f":"$CN$42","v":0}]
[null,null,null,null,null,null,null,null,null,null,null,null,null,null,null,null,null,null,null,null,null,null,null,null,null,null,null,null,null,null,null,null,null,null,null,null,null,null,null,null,null,null,null,null,null,null,null,null,null,null,null,null,null,null,null,null,null,null,null,null,null,null,null,null,null,null,null,null,null,null,null,null,null,null,null,null,null,null,null,null,null,null,null,null,null,null,null,null,null,null,null,null,null,null,null,null,null,null,null,null,null,null,null,null,null,null,null,null,null,null,null,null,null,null,null,null,null,null,null,null,null,"採用後の歴任校４学校園名",{"$f":"$X$43","v":0}]
[null,null,null,null,null,null,null,null,null,null,null,null,null,null,null,null,null,null,null,null,null,null,null,null,null,null,null,null,null,null,null,null,null,null,null,null,null,null,null,null,null,null,null,null,null,null,null,null,null,null,null,null,null,null,null,null,null,null,null,null,null,null,null,null,null,null,null,null,null,null,null,null,null,null,null,null,null,null,null,null,null,null,null,null,null,null,null,null,null,null,null,null,null,null,null,null,null,null,null,null,null,null,null,null,null,null,null,null,null,null,null,null,null,null,null,null,null,null,null,null,null,"採用後の歴任校４在年数",{"$f":"$CN$43","v":0}]
[null,null,null,null,null,null,null,null,null,null,null,null,null,null,null,null,null,null,null,null,null,null,null,null,null,null,null,null,null,null,null,null,null,null,null,null,null,null,null,null,null,null,null,null,null,null,null,null,null,null,null,null,null,null,null,null,null,null,null,null,null,null,null,null,null,null,null,null,null,null,null,null,null,null,null,null,null,null,null,null,null,null,null,null,null,null,null,null,null,null,null,null,null,null,null,null,null,null,null,null,null,null,null,null,null,null,null,null,null,null,null,null,null,null,null,null,null,null,null,null,null,"採用後の歴任校５学校園名",{"$f":"$X$44","v":0}]
[null,null,null,null,null,null,null,null,null,null,null,null,null,null,null,null,null,null,null,null,null,null,null,null,null,null,null,null,null,null,null,null,null,null,null,null,null,null,null,null,null,null,null,null,null,null,null,null,null,null,null,null,null,null,null,null,null,null,null,null,null,null,null,null,null,null,null,null,null,null,null,null,null,null,null,null,null,null,null,null,null,null,null,null,null,null,null,null,null,null,null,null,null,null,null,null,null,null,null,null,null,null,null,null,null,null,null,null,null,null,null,null,null,null,null,null,null,null,null,null,null,"採用後の歴任校５在年数",{"$f":"$CN$44","v":0}]
[null,null,null,null,null,null,null,null,null,null,null,null,null,null,null,null,null,null,null,null,null,null,null,null,null,null,null,null,null,null,null,null,null,null,null,null,null,null,null,null,null,null,null,null,null,null,null,null,null,null,null,null,null,null,null,null,null,null,null,null,null,null,null,null,null,null,null,null,null,null,null,null,null,null,null,null,null,null,null,null,null,null,null,null,null,null,null,null,null,null,null,null,null,null,null,null,null,null,null,null,null,null,null,null,null,null,null,null,null,null,null,null,null,null,null,null,null,null,null,null,null,"採用後の歴任校６学校園名",{"$f":"$X$45","v":0}]
[null,null,null,null,null,null,null,null,null,null,null,null,null,null,null,null,null,null,null,null,null,null,null,null,null,null,null,null,null,null,null,null,null,null,null,null,null,null,null,null,null,null,null,null,null,null,null,null,null,null,null,null,null,null,null,null,null,null,null,null,null,null,null,null,null,null,null,null,null,null,null,null,null,null,null,null,null,null,null,null,null,null,null,null,null,null,null,null,null,null,null,null,null,null,null,null,null,null,null,null,null,null,null,null,null,null,null,null,null,null,null,null,null,null,null,null,null,null,null,null,null,"採用後の歴任校６在年数",{"$f":"$CN$45","v":0}]
[null,null,null,null,null,null,null,null,null,null,null,null,null,null,null,null,null,null,null,null,null,null,null,null,null,null,null,null,null,null,null,null,null,null,null,null,null,null,null,null,null,null,null,null,null,null,null,null,null,null,null,null,null,null,null,null,null,null,null,null,null,null,null,null,null,null,null,null,null,null,null,null,null,null,null,null,null,null,null,null,null,null,null,null,null,null,null,null,null,null,null,null,null,null,null,null,null,null,null,null,null,null,null,null,null,null,null,null,null,null,null,null,null,null,null,null,null,null,null,null,null,"採用後の歴任校７学校園名",{"$f":"$X$46","v":0}]
[null,null,null,null,null,null,null,null,null,null,null,null,null,null,null,null,null,null,null,null,null,null,null,null,null,null,null,null,null,null,null,null,null,null,null,null,null,null,null,null,null,null,null,null,null,null,null,null,null,null,null,null,null,null,null,null,null,null,null,null,null,null,null,null,null,null,null,null,null,null,null,null,null,null,null,null,null,null,null,null,null,null,null,null,null,null,null,null,null,null,null,null,null,null,null,null,null,null,null,null,null,null,null,null,null,null,null,null,null,null,null,null,null,null,null,null,null,null,null,null,null,"採用後の歴任校７在年数",{"$f":"$CN$46","v":0}]
[null,null,null,null,null,null,null,null,null,null,null,null,null,null,null,null,null,null,null,null,null,null,null,null,null,null,null,null,null,null,null,null,null,null,null,null,null,null,null,null,null,null,null,null,null,null,null,null,null,null,null,null,null,null,null,null,null,null,null,null,null,null,null,null,null,null,null,null,null,null,null,null,null,null,null,null,null,null,null,null,null,null,null,null,null,null,null,null,null,null,null,null,null,null,null,null,null,null,null,null,null,null,null,null,null,null,null,null,null,null,null,null,null,null,null,null,null,null,null,null,null,"採用後の歴任校８学校園名",{"$f":"$X$47","v":0}]
[null,null,null,null,null,null,null,null,null,null,null,null,null,null,null,null,null,null,null,null,null,null,null,null,null,null,null,null,null,null,null,null,null,null,null,null,null,null,null,null,null,null,null,null,null,null,null,null,null,null,null,null,null,null,null,null,null,null,null,null,null,null,null,null,null,null,null,null,null,null,null,null,null,null,null,null,null,null,null,null,null,null,null,null,null,null,null,null,null,null,null,null,null,null,null,null,null,null,null,null,null,null,null,null,null,null,null,null,null,null,null,null,null,null,null,null,null,null,null,null,null,"採用後の歴任校８在年数",{"$f":"$CN$47","v":0}]

{"sheet":"記入上の留意点","index":1,"n_rows":49,"n_cols":114,"rows_kept":49,"cut":false,"hidden":false,"merged":[[47,0,47,116],[48,0,48,116],[45,5,45,22],[45,23,45,90],[45,91,45,116],[46,5,46,22],[46,23,46,90],[46,91,46,116],[43,5,43,22],[43,23,43,90],[43,91,43,116],[44,5,44,22],[44,23,44,90],[44,91,44,116],[41,5,41,22],[41,23,41,90],[41,91,41,116],[42,5,42,22],[42,23,42,90],[42,91,42,116],[38,0,46,4],[38,5,38,22],[38,23,38,90],[38,91,38,116],[39,5,39,22],[39,23,39,90],[39,91,39,116],[40,5,40,22],[40,23,40,90],[40,91,40,116],[32,5,32,116],[33,5,33,116],[34,5,34,116],[35,5,35,116],[36,5,36,116],[37,5,37,116],[28,0,37,4],[28,5,28,27],[28,28,28,94],[29,5,29,27],[29,28,29,74],[29,75,29,81],[29,82,29,92],[29,93,29,94],[30,5,30,116],[31,5,31,116],[26,0,26,12],[26,13,26,35],[26,36,26,60],[26,61,26,85],[26,86,26,116],[27,0,27,12],[27,13,27,35],[27,36,27,60],[27,61,27,85],[27,86,27,116],[22,0,23,12],[22,13,23,29],[22,30,23,35],[22,36,23,59],[22,60,23,73],[22,74,23,88],[22,89,22,112],[22,113,22,116],[23,89,23,97],[23,98,23,103],[23,104,23,112],[23,113,23,116],[24,0,24,12],[24,13,24,35],[24,36,24,60],[24,61,24,116],[25,0,25,12],[25,13,25,35],[25,36,25,60],[25,61,25,85],[25,86,25,116],[20,0,21,12],[20,13,20,116],[21,13,21,38],[21,39,21,85],[21,86,21,89],[21,90,21,96],[21,97,21,100],[21,101,21,104],[21,105,21,108],[21,109,21,112],[21,113,21,116],[17,0,17,12],[17,13,17,41],[17,42,17,68],[17,69,17,116],[18,0,19,12],[18,13,18,116],[19,13,19,80],[19,81,19,86],[19,87,19,88],[19,89,19,96],[19,97,19,98],[19,99,19,105],[19,106,19,108],[19,109,19,116],[0,15,4,102],[5,15,9,102],[10,9,12,9],[10,92,13,116],[14,0,14,12],[14,13,14,37],[14,38,14,42],[14,43,14,116],[15,0,15,12],[15,13,15,68],[15,69,16,73],[15,74,16,91],[15,92,16,95],[15,96,15,116],[16,0,16,12],[16,13,16,68],[16,96,16,112],[16,113,16,116]]}
[null,null,null,null,null,null,null,null,null,null,null,null,null,null,null,"2022年度末人事異動希望調査書"]
[]
[]
[]
[]
[null,null,null,null,null,null,null,null,null,null,null,null,null,null,null,"（期限付採用教職員・再任用教職員用）"]
[]
[]
[]
[]
[null,null,null,null,null,null,null,null,null,null,null,null,null,null,null,null,null,null,null,null,null,null,null,null,null,null,null,null,null,null,null,null,null,null,null,null,null,null,null,null,null,null,null,null,null,null,null,null,null,null,null,null,null,null,null,null,null,null,null,null,null,null,null,null,null,null,null,null,null,null,null,null,null,null,null,null,null,null,null,null,null,null,null,null,null,null,null,null,null,null,null,null,"岡山県教職員組合"]
[]
[]
[]
["現任校園名",null,null,null,null,null,null,null,null,null,null,null,null,null,null,null,null,null,null,null,null,null,null,null,null,null,null,null,null,null,null,null,null,null,null,null,null,null,"立"]
["ふりがな",null,null,null,null,null,null,null,null,null,null,null,null,null,null,null,null,null,null,null,null,null,null,null,null,null,null,null,null,null,null,null,null,null,null,null,null,null,null,null,null,null,null,null,null,null,null,null,null,null,null,null,null,null,null,null,null,null,null,null,null,null,null,null,null,null,null,null,null,"性別",null,null,null,null,null,null,null,null,null,null,null,null,null,null,null,null,null,null,null,null,null,null,"年齢",null,null,null,"(2023.3.31現在）"]
["名   　前",null,null,null,null,null,null,null,null,null,null,null,null,null,null,null,null,null,null,null,null,null,null,null,null,null,null,null,null,null,null,null,null,null,null,null,null,null,null,null,null,null,null,null,null,null,null,null,null,null,null,null,null,null,null,null,null,null,null,null,null,null,null,null,null,null,null,null,null,null,null,null,null,null,null,null,null,null,null,null,null,null,null,null,null,null,null,null,null,null,null,null,null,null,null,null,null,null,null,null,null,null,null,null,null,null,null,null,null,null,null,null,null,"歳"]
["職   　名",null,null,null,null,null,null,null,null,null,null,null,null,null,null,null,null,null,null,null,null,null,null,null,null,null,null,null,null,null,null,null,null,null,null,null,null,null,null,null,null,null,"所 有 免 許 ・ 資 格\n（教科 ・ 司書教諭）"]
["現 住 所"]
[null,null,null,null,null,null,null,null,null,null,null,null,null,null,null,null,null,null,null,null,null,null,null,null,null,null,null,null,null,null,null,null,null,null,null,null,null,null,null,null,null,null,null,null,null,null,null,null,null,null,null,null,null,null,null,null,null,null,null,null,null,null,null,null,null,null,null,null,null,null,null,null,null,null,null,null,null,null,null,null,null,"TEL",null,null,null,null,null,"（",null,null,null,null,null,null,null,null,null,"）",null,null,null,null,null,null,null,null,"－"]
["生     活\n根 拠 地"]
[null,null,null,null,null,null,null,null,null,null,null,null,null,null,null,null,null,null,null,null,null,null,null,null,null,null,null,null,null,null,null,null,null,null,null,null,null,null,null,"転居予定の方は転居予定年月日を記入してください➡",null,null,null,null,null,null,null,null,null,null,null,null,null,null,null,null,null,null,null,null,null,null,null,null,null,null,null,null,null,null,null,null,null,null,null,null,null,null,null,null,null,null,null,null,null,null,"西暦",null,null,null,null,null,null,null,null,null,null,"年",null,null,null,null,null,null,null,"月",null,null,null,null,null,null,null,"日"]
["現 任 校\n在籍年数",null,null,null,null,null,null,null,null,null,null,null,null,null,null,null,null,null,null,null,null,null,null,null,null,null,null,null,null,null,"年",null,null,null,null,null,"今年度採用試験\n合格者は〇を記入",null,null,null,null,null,null,null,null,null,null,null,null,null,null,null,null,null,null,null,null,null,null,null,null,null,null,null,null,null,null,null,null,null,null,null,null,null,"現任校まで",null,null,null,null,null,null,null,null,null,null,null,null,null,null,null,null,null,null,null,null,null,null,null,null,null,null,null,null,null,null,null,null,null,null,null,null,null,null,"km"]
[null,null,null,null,null,null,null,null,null,null,null,null,null,null,null,null,null,null,null,null,null,null,null,null,null,null,null,null,null,null,null,null,null,null,null,null,null,null,null,null,null,null,null,null,null,null,null,null,null,null,null,null,null,null,null,null,null,null,null,null,null,null,null,null,null,null,null,null,null,null,null,null,null,null,null,null,null,null,null,null,null,null,null,null,null,null,null,null,null,null,null,null,null,null,null,null,null,null,"時間",null,null,null,null,null,null,null,null,null,null,null,null,null,null,"分"]
["転出希望先",null,null,null,null,null,null,null,null,null,null,null,null,"市区町村名",null,null,null,null,null,null,null,null,null,null,null,null,null,null,null,null,null,null,null,null,null,null,"学校種別（規模）",null,null,null,null,null,null,null,null,null,null,null,null,null,null,null,null,null,null,null,null,null,null,null,null,"市町村名 および 学校園名（具体的な校園名等の希望があれば記入）"]
["第1希望"]
["第2希望"]
["第3希望"]
["来　年　度　希　望　理　由　等",null,null,null,null,"　期限付採用教職員",null,null,null,null,null,null,null,null,null,null,null,null,null,null,null,null,null,null,null,null,null,null,"　　　常勤　　　　非常勤　　　どちらでもよい　　　　どちらも希望しない",null,null,null,null,null,null,null,null,null,null,null,null,null,null,null,null,null,null,null,null,null,null,null,null,null,null,null,null,null,null,null,null,null,null,null,null,null,null,null,null,null,null,null,null,null,null,null,null,null,null,null,null,null,null,null,null,null,null,null,null,null,null,null,null,null,null," ←来年度の希望に☑"]
[null,null,null,null,null,"　再任用教職員",null,null,null,null,null,null,null,null,null,null,null,null,null,null,null,null,null,null,null,null,null,null,"　　　　フルタイム　　　短時間　　　　どちらも希望しない　",null,null,null,null,null,null,null,null,null,null,null,null,null,null,null,null,null,null,null,null,null,null,null,null,null,null,null,null,null,null,null,null,null,null,null,null,null,null,null,null,null,null,null,null,null,null,"その他（",null,null,null,null,null,null,null,null,null,null,null,null,null,null,null,null,null,"）",null," ←来年度の希望に☑"]
[null,null,null,null,null,"　担当可能（希望）教科等"]
[]
[null,null,null,null,null,"　通勤に関すること（通勤時間、通勤手段等で配慮を求める事項があれば具体的に記入）"]
[]
[null,null,null,null,null,"　勤務に関すること（学校種別、校務分掌、人間関係、自身の体調や通院等の状況等で配慮を求める事項があれば具体的に記入）"]
[]
[null,null,null,null,null,"　その他（上記以外で配慮を要するもの、または、幼・こ・保育園名、施設名、病院名等配慮を求める事項があれば具体的に記入）"]
[]
["採 用 後 の 歴 任 校",null,null,null,null,null,null,null,null,null,null,null,null,null,null,null,null,null,null,null,null,null,null,"学校園名",null,null,null,null,null,null,null,null,null,null,null,null,null,null,null,null,null,null,null,null,null,null,null,null,null,null,null,null,null,null,null,null,null,null,null,null,null,null,null,null,null,null,null,null,null,null,null,null,null,null,null,null,null,null,null,null,null,null,null,null,null,null,null,null,null,null,null,"在籍年数"]
[null,null,null,null,null,"初任校"]
[null,null,null,null,null,"2校目"]
[null,null,null,null,null,"3校目"]
[null,null,null,null,null,"4校目"]
[null,null,null,null,null,"5校目"]
[null,null,null,null,null,"6校目"]
[null,null,null,null,null,"7校目"]
[null,null,null,null,null,"8校目"]
["◎ 支部の指定する日までに支部書記局へ提出してください。"]
["◎２部（支部用・分会用）印刷して提出してください。"]